fUST/lending_fUST_20240723
["ID","MTS","AMOUNT","RATE_DAILY","PERIOD"]
[332919853,1721679064553,-500.0,0.0001589,2]
[332919854,1721679064563,-500.0,0.0001589,2]
[332919855,1721679064573,-714.04,0.0001589,2]
[332919856,1721679064583,-500.0,0.0001589,2]
[332919857,1721679064592,-500.0,0.0001589,2]
[332919858,1721679064601,-500.0,0.0001589,2]
[332919859,1721679064610,-500.0,0.0001589,2]
[332919860,1721679064619,-2726.26,0.0001589,2]
[332919861,1721679064629,-949.32,0.0001589,2]
[332919862,1721679064638,-672.7,0.0001589,2]
[332919863,1721679064648,-500.0,0.0001589,2]
[332919864,1721679064657,-500.0,0.0001589,2]
[332919865,1721679064667,-500.0,0.0001589,2]
[332919866,1721679064677,-500.0,0.0001589,2]
[332919867,1721679064686,-500.0,0.0001589,2]
[332919868,1721679064696,-500.0,0.0001589,2]
[332919869,1721679064706,-630.96,0.0001589,2]
[332919870,1721679064716,-500.0,0.0001589,2]
[332919871,1721679064725,-500.0,0.0001589,2]
[332919872,1721679064735,-500.0,0.0001589,2]
[332919873,1721679064744,-382.50737118,0.0001589,2]
[332919874,1721679064754,-500.0,0.0001589,2]
[332919875,1721679064763,-246.2,0.0001589,2]
[332919876,1721679064773,-500.0,0.0001589,2]
[332919877,1721679064782,-500.0,0.0001589,2]
[332919878,1721679064792,-500.0,0.0001589,2]
[332919879,1721679064802,-500.0,0.0001589,2]
[332919880,1721679064811,-500.0,0.0001589,2]
[332919881,1721679064821,-500.0,0.0001589,2]
[332919882,1721679064830,-500.0,0.0001589,2]
[332919883,1721679064840,-500.0,0.0001589,2]
[332919884,1721679064849,-547.77,0.0001589,2]
[332919885,1721679064859,-500.0,0.0001589,2]
[332919886,1721679064868,-500.0,0.0001589,2]
[332919887,1721679064878,-500.0,0.0001589,2]
[332919888,1721679064889,-236.53,0.0001589,2]
[332919889,1721679064899,-500.0,0.0001589,2]
[332919890,1721679064910,-500.0,0.0001589,2]
[332919891,1721679064921,-500.0,0.0001589,2]
[332919892,1721679064932,-500.0,0.0001589,2]
[332919893,1721679064946,-558.41,0.0001589,2]
[332919894,1721679064958,-500.0,0.0001589,2]
[332919895,1721679064969,-519.32,0.0001589,2]
[332919896,1721679064979,-500.0,0.0001589,2]
[332919897,1721679064989,-500.0,0.0001589,2]
[332919898,1721679065000,-533.47,0.0001589,2]
[332919899,1721679065011,-587.87,0.0001589,2]
[332919900,1721679065021,-435.3,0.0001589,2]
[332919901,1721679065031,-521.93,0.0001589,2]
[332919902,1721679065041,-299.86,0.0001589,2]
[332919903,1721679065052,-500.0,0.0001589,2]
[332919904,1721679065062,-500.0,0.0001589,2]
[332919905,1721679065072,-500.0,0.0001589,2]
[332919906,1721679065082,-500.0,0.0001589,2]
[332919907,1721679065092,-500.0,0.0001589,2]
[332919908,1721679065103,-544.55,0.0001589,2]
[332919909,1721679065113,-204.32,0.0001589,2]
[332919910,1721679065124,-500.0,0.0001589,2]
[332919911,1721679065134,-500.0,0.0001589,2]
[332919912,1721679065144,-500.0,0.0001589,2]
[332919913,1721679065154,-151.0,0.0001589,2]
[332919914,1721679065164,-167.387979,0.00015946,2]
[332919915,1721679065174,-195.906949,0.00015946,2]
[332919916,1721679065184,-4076.21094792,0.00015952,2]
[332919917,1721679065194,-6997.94438168,0.00015952,2]
[332919918,1721679065204,-3000.0,0.00016,2]
[332919919,1721679065214,-3000.0,0.0001601,2]
[332919920,1721679065223,-3000.0,0.0001602,2]
[332919921,1721679065233,-3000.0,0.0001603,2]
[332919922,1721679065243,-2426.72780151,0.00016038,2]
[332919923,1721679065252,-1500.0,0.00016038,2]
[332919924,1721679065262,-3000.0,0.0001604,2]
[332919925,1721679065271,-3000.0,0.0001605,2]
[332919926,1721679065282,-3000.0,0.0001606,2]
[332919927,1721679065292,-3000.0,0.0001607,2]
[332919928,1721679065302,-3000.0,0.0001608,2]
[332919929,1721679065311,-3000.0,0.0001609,2]
[332919930,1721679065321,-30000.0,0.00016094,2]
[332919931,1721679065330,-10604.54681746,0.00016095,2]
[332919932,1721679065340,-8099.82307032,0.00016095,2]
[332919933,1721679065349,-4103.93444822,0.00016095,2]
[332919934,1721679065359,-2653.12411033,0.00016095,2]
[332919935,1721679065368,-2653.12411033,0.00016095,2]
[332919936,1721679065377,-3000.0,0.000161,2]
[332919937,1721679065387,-1638.86324211,0.0001611,2]
[332919938,1721679065397,-4001.92634564,0.0001611,2]
[332919939,1721679065406,-3000.0,0.0001611,2]
[332919940,1721679065415,-3000.0,0.0001612,2]
[332919941,1721679065425,-3000.0,0.0001613,2]
[332919942,1721679065434,-3000.0,0.0001614,2]
[332919943,1721679065448,-3000.0,0.0001615,2]
[332919944,1721679065458,-1696.91792057,0.00016159,2]
[332919945,1721679065475,-3000.0,0.0001616,2]
[332919946,1721679065485,-500.0,0.00016164,2]
[332919947,1721679065496,-2106.06,0.00016164,2]
[332919948,1721679065507,-500.0,0.00016164,2]
[332919949,1721679065517,-500.0,0.00016164,2]
[332919950,1721679065527,-950.93,0.00016164,2]
[332919951,1721679065538,-968.56,0.00016164,2]
[332919952,1721679065551,-500.0,0.00016164,2]
[332919953,1721679065563,-1012.77,0.00016164,2]
[332919954,1721679065573,-638.65,0.00016164,2]
[332919955,1721679065583,-1943.72,0.00016164,2]
[332919956,1721679065595,-500.0,0.00016164,2]
[332919957,1721679065607,-630.3,0.00016164,2]
[332919958,1721679065616,-500.0,0.00016164,2]
[332919959,1721679065627,-500.0,0.00016164,2]
[332919960,1721679065638,-500.0,0.00016164,2]
[332919961,1721679065650,-500.0,0.00016164,2]
[332919962,1721679065662,-500.0,0.00016164,2]
[332919963,1721679065671,-1280.48,0.00016164,2]
[332919964,1721679065681,-500.0,0.00016164,2]
[332919965,1721679065692,-771.21,0.00016164,2]
[332919966,1721679065703,-1364.05,0.00016164,2]
[332919967,1721679065712,-500.0,0.00016164,2]
[332919968,1721679065722,-1291.17,0.00016164,2]
[332919969,1721679065732,-500.0,0.00016164,2]
[332919970,1721679065742,-500.0,0.00016164,2]
[332919971,1721679065752,-500.0,0.00016164,2]
[332919972,1721679065761,-500.0,0.00016164,2]
[332919973,1721679065771,-500.0,0.00016164,2]
[332919974,1721679065780,-500.0,0.00016164,2]
[332919975,1721679065790,-855.5,0.00016164,2]
[332919976,1721679065800,-536.57,0.00016164,2]
[332919977,1721679065810,-500.0,0.00016164,2]
[332919978,1721679065819,-1320.42,0.00016164,2]
[332919979,1721679065829,-1377.79,0.00016164,2]
[332919980,1721679065839,-500.0,0.00016164,2]
[332919981,1721679065848,-500.0,0.00016164,2]
[332919982,1721679065857,-714.04,0.00016164,2]
[332919983,1721679065867,-500.0,0.00016164,2]
[332919984,1721679065876,-500.0,0.00016164,2]
[332919985,1721679065886,-500.0,0.00016164,2]
[332919986,1721679065896,-564.31824357,0.00016164,2]
[332919987,1721679065905,-2726.26,0.00016164,2]
[332919988,1721679065915,-949.32,0.00016164,2]
[332919989,1721679065924,-672.7,0.00016164,2]
[332919990,1721679065935,-500.0,0.00016164,2]
[332919991,1721679065946,-500.0,0.00016164,2]
[332919992,1721679065955,-500.0,0.00016164,2]
[332919993,1721679065964,-500.0,0.00016164,2]
[332919994,1721679065973,-500.0,0.00016164,2]
[332919995,1721679065983,-500.0,0.00016164,2]
[332919996,1721679065993,-630.96,0.00016164,2]
[332919997,1721679066002,-500.0,0.00016164,2]
[332919998,1721679066012,-500.0,0.00016164,2]
[332919999,1721679066022,-500.0,0.00016164,2]
[332920000,1721679066031,-500.0,0.00016164,2]
[332920001,1721679066041,-477.16,0.00016164,2]
[332920002,1721679066051,-500.0,0.00016164,2]
[332920003,1721679066060,-500.0,0.00016164,2]
[332920004,1721679066070,-500.0,0.00016164,2]
[332920005,1721679066079,-500.0,0.00016164,2]
[332920006,1721679066088,-500.0,0.00016164,2]
[332920007,1721679066097,-172.75488713,0.00016164,2]
[332920008,1721679066106,-547.77,0.00016164,2]
[332920009,1721679066116,-500.0,0.00016164,2]
[332920010,1721679066125,-500.0,0.00016164,2]
[332920011,1721679066135,-500.0,0.00016164,2]
[332920012,1721679066144,-500.0,0.00016164,2]
[332920013,1721679066153,-500.0,0.00016164,2]
[332920014,1721679066163,-500.0,0.00016164,2]
[332920015,1721679066173,-500.0,0.00016164,2]
[332920016,1721679066185,-500.0,0.00016164,2]
[332920017,1721679066197,-500.0,0.00016164,2]
[332920018,1721679066207,-500.0,0.00016164,2]
[332920019,1721679066216,-533.47,0.00016164,2]
[332920020,1721679066225,-587.87,0.00016164,2]
[332920021,1721679066235,-215.53651285,0.00016164,2]
[332920022,1721679066245,-500.0,0.00016164,2]
[332920023,1721679066254,-500.0,0.00016164,2]
[332920024,1721679066349,-500.0,0.00016164,2]
[332920025,1721679066359,-544.55,0.00016164,2]
[332920026,1721679066369,-500.0,0.00016164,2]
[332920027,1721679066379,-3000.0,0.0001617,2]
[332920028,1721679066390,-3000.0,0.0001618,2]
[332920029,1721679066400,-3000.0,0.0001619,2]
[332920030,1721679066410,-3000.0,0.000162,2]
[332920031,1721679066420,-3000.0,0.0001621,2]
[332920032,1721679066430,-3000.0,0.0001622,2]
[332920033,1721679066443,-3000.0,0.0001623,2]
[332920034,1721679066454,-3000.0,0.0001624,2]
[332920035,1721679066464,-3000.0,0.0001625,2]
[332920036,1721679066474,-3000.0,0.0001626,2]
[332920037,1721679066490,-3000.0,0.0001627,2]
[332920038,1721679066500,-3000.0,0.0001628,2]
[332920039,1721679066511,-3000.0,0.0001629,2]
[332920040,1721679066522,-400.0,0.00016295,2]
[332920041,1721679066532,-3000.0,0.000163,2]
[332920042,1721679066541,-3000.0,0.0001631,2]
[332920043,1721679066551,-3000.0,0.0001632,2]
[332920044,1721679066563,-5850.410323,0.0001633,2]
[332920045,1721679066572,-196.48811,0.0001633,2]
[332920046,1721679066582,-196.48811,0.0001633,2]
[332920047,1721679066591,-151.0,0.0001633,2]
[332920048,1721679066601,-151.0,0.0001633,2]
[332920049,1721679066611,-151.0,0.0001633,2]
[332920050,1721679066621,-196.751752,0.0001633,2]
[332920051,1721679066630,-196.751752,0.0001633,2]
[332920052,1721679066641,-151.0,0.00016347,2]
[332920053,1721679066650,-151.0,0.00016347,2]
[332920054,1721679066660,-151.0,0.00016347,2]
[332920055,1721679066670,-224.50165,0.00016347,2]
[332920056,1721679066679,-224.50165,0.00016347,2]
[332920057,1721679066691,-151.0,0.00016347,2]
[332920058,1721679066701,-1107.79559828,0.00016347,2]
[332920059,1721679066710,-3055.07852324,0.00016347,2]
[332920060,1721679066720,-312.49,0.00016438,2]
[332920061,1721679066730,-500.0,0.00016438,2]
[332920062,1721679066739,-497.89,0.00016438,2]
[332920063,1721679066748,-950.93,0.00016438,2]
[332920064,1721679066759,-968.56,0.00016438,2]
[332920065,1721679066768,-446.4,0.00016438,2]
[332920066,1721679066778,-1012.77,0.00016438,2]
[332920067,1721679066787,-638.65,0.00016438,2]
[332920068,1721679066797,-1943.72,0.00016438,2]
[332920069,1721679066806,-500.0,0.00016438,2]
[332920070,1721679066816,-577.4,0.00016438,2]
[332920071,1721679066826,-500.0,0.00016438,2]
[332920072,1721679066835,-500.0,0.00016438,2]
[332920073,1721679066845,-500.0,0.00016438,2]
[332920074,1721679066854,-500.0,0.00016438,2]
[332920075,1721679066864,-1280.48,0.00016438,2]
[332920076,1721679066873,-500.0,0.00016438,2]
[332920077,1721679066883,-771.21,0.00016438,2]
[332920078,1721679066893,-1364.05,0.00016438,2]
[332920079,1721679066904,-500.0,0.00016438,2]
[332920080,1721679066915,-1291.17,0.00016438,2]
[332920081,1721679066924,-500.0,0.00016438,2]
[332920082,1721679066934,-500.0,0.00016438,2]
[332920083,1721679066948,-500.0,0.00016438,2]
[332920084,1721679066959,-500.0,0.00016438,2]
[332920085,1721679066969,-500.0,0.00016438,2]
[332920086,1721679066978,-500.0,0.00016438,2]
[332920087,1721679066988,-855.5,0.00016438,2]
[332920088,1721679066999,-536.57,0.00016438,2]
[332920089,1721679067008,-500.0,0.00016438,2]
[332920090,1721679067018,-1320.42,0.00016438,2]
[332920091,1721679067027,-1377.79,0.00016438,2]
[332920092,1721679067037,-349.27,0.00016438,2]
[332920093,1721679067047,-500.0,0.00016438,2]
[332920094,1721679067057,-714.04,0.00016438,2]
[332920095,1721679067067,-500.0,0.00016438,2]
[332920096,1721679067076,-500.0,0.00016438,2]
[332920097,1721679067086,-500.0,0.00016438,2]
[332920098,1721679067096,-2726.26,0.00016438,2]
[332920099,1721679067108,-949.32,0.00016438,2]
[332920100,1721679067118,-672.7,0.00016438,2]
[332920101,1721679067127,-500.0,0.00016438,2]
[332920102,1721679067137,-500.0,0.00016438,2]
[332920103,1721679067146,-500.0,0.00016438,2]
[332920104,1721679067156,-500.0,0.00016438,2]
[332920105,1721679067166,-500.0,0.00016438,2]
[332920106,1721679067179,-500.0,0.00016438,2]
[332920107,1721679067192,-630.96,0.00016438,2]
[332920108,1721679067202,-500.0,0.00016438,2]
[332920109,1721679067211,-500.0,0.00016438,2]
[332920110,1721679067221,-500.0,0.00016438,2]
[332920111,1721679067231,-599.23,0.00016438,2]
[332920112,1721679067241,-500.0,0.00016438,2]
[332920113,1721679067251,-500.0,0.00016438,2]
[332920114,1721679067261,-500.0,0.00016438,2]
[332920115,1721679067271,-500.0,0.00016438,2]
[332920116,1721679067281,-500.0,0.00016438,2]
[332920117,1721679067291,-547.77,0.00016438,2]
[332920118,1721679067301,-500.0,0.00016438,2]
[332920119,1721679067310,-500.0,0.00016438,2]
[332920120,1721679067320,-500.0,0.00016438,2]
[332920121,1721679067330,-500.0,0.00016438,2]
[332920122,1721679067340,-500.0,0.00016438,2]
[332920123,1721679067350,-500.0,0.00016438,2]
[332920124,1721679067359,-500.0,0.00016438,2]
[332920125,1721679067369,-500.0,0.00016438,2]
[332920126,1721679067379,-163.4,0.00016438,2]
[332920127,1721679067395,-416.9,0.00016438,2]
[332920128,1721679067405,-500.0,0.00016438,2]
[332920129,1721679067414,-500.0,0.00016438,2]
[332920130,1721679067423,-533.47,0.00016438,2]
[332920131,1721679067433,-587.87,0.00016438,2]
[332920132,1721679067448,-544.55,0.00016438,2]
[332920133,1721679067458,-500.0,0.00016438,2]
[332920134,1721679067475,-166.666666,0.00016438,2]
[332920135,1721679067486,-360.26163134,0.00016603,2]
[332920136,1721679067495,-500.0,0.00016712,2]
[332920137,1721679067507,-950.93,0.00016712,2]
[332920138,1721679067517,-968.56,0.00016712,2]
[332920139,1721679067527,-1012.77,0.00016712,2]
[332920140,1721679067537,-638.65,0.00016712,2]
[332920141,1721679067547,-1943.72,0.00016712,2]
[332920142,1721679067559,-500.0,0.00016712,2]
[332920143,1721679067569,-397.5,0.00016712,2]
[332920144,1721679067579,-500.0,0.00016712,2]
[332920145,1721679067589,-500.0,0.00016712,2]
[332920146,1721679067599,-500.0,0.00016712,2]
[332920147,1721679067609,-1280.48,0.00016712,2]
[332920148,1721679067618,-500.0,0.00016712,2]
[332920149,1721679067628,-771.21,0.00016712,2]
[332920150,1721679067640,-500.0,0.00016712,2]
[332920151,1721679067650,-1291.17,0.00016712,2]
[332920152,1721679067659,-500.0,0.00016712,2]
[332920153,1721679067669,-500.0,0.00016712,2]
[332920154,1721679067679,-500.0,0.00016712,2]
[332920155,1721679067693,-500.0,0.00016712,2]
[332920156,1721679067704,-500.0,0.00016712,2]
[332920157,1721679067714,-500.0,0.00016712,2]
[332920158,1721679067723,-855.5,0.00016712,2]
[332920159,1721679067732,-536.57,0.00016712,2]
[332920160,1721679067743,-500.0,0.00016712,2]
[332920161,1721679067752,-1320.42,0.00016712,2]
[332920162,1721679067762,-1377.79,0.00016712,2]
[332920163,1721679067771,-500.0,0.00016712,2]
[332920164,1721679067780,-714.04,0.00016712,2]
[332920165,1721679067789,-500.0,0.00016712,2]
[332920166,1721679067798,-500.0,0.00016712,2]
[332920167,1721679067807,-500.0,0.00016712,2]
[332920168,1721679067816,-2726.26,0.00016712,2]
[332920169,1721679067825,-949.32,0.00016712,2]
[332920170,1721679067834,-672.7,0.00016712,2]
[332920171,1721679067843,-500.0,0.00016712,2]
[332920172,1721679067852,-500.0,0.00016712,2]
[332920173,1721679067862,-500.0,0.00016712,2]
[332920174,1721679067871,-500.0,0.00016712,2]
[332920175,1721679067880,-500.0,0.00016712,2]
[332920176,1721679067889,-500.0,0.00016712,2]
[332920177,1721679067899,-630.96,0.00016712,2]
[332920178,1721679067909,-500.0,0.00016712,2]
[332920179,1721679067918,-500.0,0.00016712,2]
[332920180,1721679067928,-500.0,0.00016712,2]
[332920181,1721679068020,-500.0,0.00016712,2]
[332920182,1721679068031,-318.64145167,0.00016712,2]
[332920183,1721679068040,-500.0,0.00016712,2]
[332920184,1721679068050,-500.0,0.00016712,2]
[332920185,1721679068059,-500.0,0.00016712,2]
[332920186,1721679068069,-547.77,0.00016712,2]
[332920187,1721679068079,-500.0,0.00016712,2]
[332920188,1721679068089,-500.0,0.00016712,2]
[332920189,1721679068098,-500.0,0.00016712,2]
[332920190,1721679068108,-500.0,0.00016712,2]
[332920191,1721679068117,-500.0,0.00016712,2]
[332920192,1721679068126,-318.13,0.00016712,2]
[332920193,1721679068135,-500.0,0.00016712,2]
[332920194,1721679068144,-500.0,0.00016712,2]
[332920195,1721679068154,-163.4,0.00016712,2]
[332920196,1721679068163,-416.9,0.00016712,2]
[332920197,1721679068173,-500.0,0.00016712,2]
[332920198,1721679068182,-500.0,0.00016712,2]
[332920199,1721679068194,-533.47,0.00016712,2]
[332920200,1721679068204,-587.87,0.00016712,2]
[332920201,1721679068213,-151.0,0.00016712,2]
[332920202,1721679068222,-151.0,0.00016712,2]
[332920203,1721679068234,-544.55,0.00016712,2]
[332920204,1721679068244,-500.0,0.00016712,2]
[332920205,1721679068253,-206.6425332,0.00016712,2]
[332920206,1721679068263,-206.6425332,0.00016712,2]
[332920207,1721679068273,-206.6425332,0.00016712,2]
[332920208,1721679068282,-153.0,0.00016712,2]
[332920209,1721679068291,-166.666666,0.00016823,2]
[332920210,1721679068301,-1002.61770105,0.00016846,2]
[332920211,1721679068310,-706.65010942,0.00016982,2]
[332920212,1721679068319,-500.0,0.00016986,2]
[332920213,1721679068329,-950.93,0.00016986,2]
[332920214,1721679068338,-968.56,0.00016986,2]
[332920215,1721679068347,-1012.77,0.00016986,2]
[332920216,1721679068357,-638.65,0.00016986,2]
[332920217,1721679068367,-1943.72,0.00016986,2]
[332920218,1721679068376,-500.0,0.00016986,2]
[332920219,1721679068386,-500.0,0.00016986,2]
[332920220,1721679068395,-500.0,0.00016986,2]
[332920221,1721679068404,-500.0,0.00016986,2]
[332920222,1721679068414,-1280.48,0.00016986,2]
[332920223,1721679068423,-500.0,0.00016986,2]
[332920224,1721679068432,-771.21,0.00016986,2]
[332920225,1721679068445,-500.0,0.00016986,2]
[332920226,1721679068454,-1291.17,0.00016986,2]
[332920227,1721679068465,-287.64,0.00016986,2]
[332920228,1721679068475,-500.0,0.00016986,2]
[332920229,1721679068489,-500.0,0.00016986,2]
[332920230,1721679068498,-500.0,0.00016986,2]
[332920231,1721679068507,-500.0,0.00016986,2]
[332920232,1721679068516,-500.0,0.00016986,2]
[332920233,1721679068525,-855.5,0.00016986,2]
[332920234,1721679068534,-536.57,0.00016986,2]
[332920235,1721679068544,-500.0,0.00016986,2]
[332920236,1721679068556,-1320.42,0.00016986,2]
[332920237,1721679068566,-1377.79,0.00016986,2]
[332920238,1721679068575,-500.0,0.00016986,2]
[332920239,1721679068585,-714.04,0.00016986,2]
[332920240,1721679068595,-500.0,0.00016986,2]
[332920241,1721679068604,-500.0,0.00016986,2]
[332920242,1721679068613,-321.11,0.00016986,2]
[332920243,1721679068622,-2726.26,0.00016986,2]
[332920244,1721679068631,-949.32,0.00016986,2]
[332920245,1721679068640,-672.7,0.00016986,2]
[332920246,1721679068650,-500.0,0.00016986,2]
[332920247,1721679068660,-500.0,0.00016986,2]
[332920248,1721679068669,-500.0,0.00016986,2]
[332920249,1721679068679,-500.0,0.00016986,2]
[332920250,1721679068692,-500.0,0.00016986,2]
[332920251,1721679068701,-500.0,0.00016986,2]
[332920252,1721679068711,-630.96,0.00016986,2]
[332920253,1721679068721,-500.0,0.00016986,2]
[332920254,1721679068731,-500.0,0.00016986,2]
[332920255,1721679068740,-500.0,0.00016986,2]
[332920256,1721679068750,-500.0,0.00016986,2]
[332920257,1721679068759,-500.0,0.00016986,2]
[332920258,1721679068769,-500.0,0.00016986,2]
[332920259,1721679068778,-500.0,0.00016986,2]
[332920260,1721679068787,-547.77,0.00016986,2]
[332920261,1721679068797,-500.0,0.00016986,2]
[332920262,1721679068806,-500.0,0.00016986,2]
[332920263,1721679068815,-500.0,0.00016986,2]
[332920264,1721679068824,-500.0,0.00016986,2]
[332920265,1721679068834,-395.4,0.00016986,2]
[332920266,1721679068843,-500.0,0.00016986,2]
[332920267,1721679068853,-500.0,0.00016986,2]
[332920268,1721679068864,-163.4,0.00016986,2]
[332920269,1721679068873,-416.9,0.00016986,2]
[332920270,1721679068883,-250.04136914,0.00016986,2]
[332920271,1721679068893,-500.0,0.00016986,2]
[332920272,1721679068903,-533.47,0.00016986,2]
[332920273,1721679068913,-156.820474,0.00016986,2]
[332920274,1721679068923,-151.0,0.00016986,2]
[332920275,1721679068932,-156.820474,0.00016986,2]
[332920276,1721679068944,-151.079315,0.00016986,2]
[332920277,1721679068954,-587.87,0.00016986,2]
[332920278,1721679068966,-151.079315,0.00016986,2]
[332920279,1721679068976,-544.55,0.00016986,2]
[332920280,1721679068986,-500.0,0.00016986,2]
[332920281,1721679068996,-957.43891528,0.00017019,2]
[332920282,1721679069006,-184.0,0.00017169,2]
[332920283,1721679069015,-166.666666,0.00017208,2]
[332920284,1721679069025,-500.0,0.0001726,2]
[332920285,1721679069036,-950.93,0.0001726,2]
[332920286,1721679069046,-968.56,0.0001726,2]
[332920287,1721679069057,-1012.77,0.0001726,2]
[332920288,1721679069067,-638.65,0.0001726,2]
[332920289,1721679069077,-1943.72,0.0001726,2]
[332920290,1721679069088,-500.0,0.0001726,2]
[332920291,1721679069099,-500.0,0.0001726,2]
[332920292,1721679069111,-500.0,0.0001726,2]
[332920293,1721679069122,-567.48,0.0001726,2]
[332920294,1721679069132,-1280.48,0.0001726,2]
[332920295,1721679069142,-500.0,0.0001726,2]
[332920296,1721679069151,-771.21,0.0001726,2]
[332920297,1721679069161,-500.0,0.0001726,2]
[332920298,1721679069171,-500.0,0.0001726,2]
[332920299,1721679069182,-500.0,0.0001726,2]
[332920300,1721679069193,-500.0,0.0001726,2]
[332920301,1721679069203,-500.0,0.0001726,2]
[332920302,1721679069212,-500.0,0.0001726,2]
[332920303,1721679069221,-855.5,0.0001726,2]
[332920304,1721679069231,-536.57,0.0001726,2]
[332920305,1721679069243,-500.0,0.0001726,2]
[332920306,1721679069253,-1320.42,0.0001726,2]
[332920307,1721679069263,-1377.79,0.0001726,2]
[332920308,1721679069273,-500.0,0.0001726,2]
[332920309,1721679069285,-714.04,0.0001726,2]
[332920310,1721679069298,-500.0,0.0001726,2]
[332920311,1721679069310,-159.2,0.0001726,2]
[332920312,1721679069320,-2726.26,0.0001726,2]
[332920313,1721679069331,-949.32,0.0001726,2]
[332920314,1721679069341,-672.7,0.0001726,2]
[332920315,1721679069350,-500.0,0.0001726,2]
[332920316,1721679069360,-500.0,0.0001726,2]
[332920317,1721679069369,-500.0,0.0001726,2]
[332920318,1721679069379,-500.0,0.0001726,2]
[332920319,1721679069388,-500.0,0.0001726,2]
[332920320,1721679069397,-226.96,0.0001726,2]
[332920321,1721679069406,-630.96,0.0001726,2]
[332920322,1721679069417,-500.0,0.0001726,2]
[332920323,1721679069426,-391.82952288,0.0001726,2]
[332920324,1721679069436,-500.0,0.0001726,2]
[332920325,1721679069448,-410.75701201,0.0001726,2]
[332920326,1721679069535,-500.0,0.0001726,2]
[332920327,1721679069546,-384.65,0.0001726,2]
[332920328,1721679069556,-544.86,0.0001726,2]
[332920329,1721679069565,-547.77,0.0001726,2]
[332920330,1721679069574,-500.0,0.0001726,2]
[332920331,1721679069584,-500.0,0.0001726,2]
[332920332,1721679069594,-500.0,0.0001726,2]
[332920333,1721679069603,-500.0,0.0001726,2]
[332920334,1721679069613,-314.96,0.0001726,2]
[332920335,1721679069623,-500.0,0.0001726,2]
[332920336,1721679069632,-163.4,0.0001726,2]
[332920337,1721679069641,-416.9,0.0001726,2]
[332920338,1721679069651,-500.0,0.0001726,2]
[332920339,1721679069660,-533.47,0.0001726,2]
[332920340,1721679069670,-587.87,0.0001726,2]
[332920341,1721679069679,-544.55,0.0001726,2]
[332920342,1721679069690,-500.0,0.0001726,2]
[332920343,1721679069700,-600.0,0.0001728,2]
[332920344,1721679069710,-151.0,0.00017379,2]
[332920345,1721679069719,-151.0,0.00017379,2]
[332920346,1721679069729,-151.0,0.00017379,2]
[332920347,1721679069738,-207.851365,0.00017379,2]
[332920348,1721679069747,-207.851365,0.00017379,2]
[332920349,1721679069757,-151.0,0.00017379,2]
[332920350,1721679069767,-151.0,0.00017379,2]
[332920351,1721679069776,-1044.21000206,0.00017379,2]
[332920352,1721679069786,-1409.0,0.00017388,2]